bitfinex/quotes_BTCUSD_20250719
["timestamp","ask_amount","ask_price","bid_price","bid_amount"]
[1752937179354,0.76382071,117670.0,117660.0,0.03705001]
[1752937179765,0.17946504,117670.0,117660.0,0.03705001]
[1752937179979,0.76173071,117670.0,117660.0,0.03705001]
[1752937180195,0.42173071,117670.0,117660.0,0.03705001]
[1752937180380,0.17946504,117670.0,117660.0,0.03705001]
[1752937180840,0.42173071,117670.0,117660.0,0.03705001]
[1752937181492,0.001,117670.0,117660.0,0.12256029]
[1752937181720,0.19646114,117670.0,117660.0,0.12256029]
[1752937181976,0.20495883,117670.0,117660.0,0.12256029]
[1752937182227,0.02649371,117670.0,117660.0,0.12256029]
[1752937182677,0.02649364,117670.0,117660.0,0.12256029]
[1752937182910,0.03499191,117670.0,117660.0,0.12256029]
[1752937183137,0.03399191,117670.0,117660.0,0.12256029]
[1752937183362,0.02549212,117680.0,117670.0,0.0321]
[1752937183582,0.18694728,117680.0,117670.0,0.12266028]
[1752937183799,0.42921295,117680.0,117670.0,0.03715]
[1752937184252,0.17846504,117670.0,117660.0,0.03516001]
[1752937184480,0.42073071,117670.0,117660.0,0.03715001]
[1752937186071,0.42073071,117670.0,117660.0,0.03815001]
[1752937187460,0.42073071,117670.0,117660.0,0.03915001]
[1752937188295,0.17846504,117670.0,117660.0,0.03915001]
[1752937188535,0.42073071,117670.0,117660.0,0.03915001]
[1752937190810,0.17846504,117670.0,117660.0,0.03915001]
[1752937191022,0.42073071,117670.0,117660.0,0.03915001]
[1752937191228,0.17846504,117670.0,117660.0,0.03915001]
[1752937191371,0.42073071,117670.0,117660.0,0.03915001]
[1752937194645,0.17846504,117670.0,117660.0,0.03915001]
[1752937194848,0.42073071,117670.0,117660.0,0.03915001]
[1752937195885,0.17846504,117670.0,117660.0,0.03915001]
[1752937196084,0.42073071,117670.0,117660.0,0.03915001]
[1752937198097,0.17846504,117670.0,117660.0,0.03915001]
[1752937198304,0.42073071,117670.0,117660.0,0.03915001]
[1752937198906,0.17846504,117670.0,117660.0,0.03915001]
[1752937199402,0.18696316,117670.0,117660.0,0.36692596]
[1752937200035,0.17846504,117670.0,117660.0,0.36692596]
[1752937200256,0.17846504,117670.0,117660.0,0.12466029]
[1752937200674,0.42073071,117670.0,117660.0,0.12466029]
[1752937200912,0.42073071,117670.0,117660.0,0.03915001]
[1752937201117,0.42268071,117670.0,117660.0,0.00399001]
[1752937201324,0.42584071,117670.0,117660.0,0.00200001]
[1752937202842,0.42268071,117670.0,117660.0,0.00200001]
[1752937203301,0.18041504,117670.0,117660.0,0.00200001]
[1752937203520,0.42268071,117670.0,117660.0,0.00200001]
[1752937204359,0.42268071,117670.0,117660.0,0.00408001]
[1752937204581,0.42073071,117670.0,117660.0,0.00709001]
[1752937204806,0.17846504,117670.0,117660.0,0.03719001]
[1752937205231,0.16518861,117670.0,117660.0,0.03719001]
[1752937205437,0.1736868,117670.0,117660.0,0.03719001]
[1752937207001,0.1756368,117670.0,117660.0,0.00408001]
[1752937207206,0.1736868,117670.0,117660.0,0.02219001]
[1752937207452,0.1736868,117670.0,117660.0,0.03719001]
[1752937207880,0.41790247,117670.0,117660.0,0.00200001]
[1752937208098,0.41595247,117670.0,117660.0,0.00709001]
[1752937208356,0.1736868,117670.0,117660.0,0.03869001]
[1752937211010,0.1680268,117670.0,117660.0,0.03869001]
[1752937211642,0.41029247,117670.0,117660.0,0.03869001]
[1752937212067,0.41224247,117670.0,117660.0,0.03869001]
[1752937212294,0.1699768,117670.0,117660.0,0.03869001]
[1752937212580,0.41224247,117670.0,117660.0,0.03869001]
[1752937213307,0.44660247,117670.0,117660.0,0.00200001]
[1752937213787,0.2043368,117670.0,117660.0,0.00200001]
[1752937214253,0.44660247,117670.0,117660.0,0.00200001]
[1752937214682,0.2043368,117670.0,117660.0,0.00100001]
[1752937214939,0.44660247,117670.0,117660.0,0.00100001]
[1752937215157,0.44660247,117670.0,117660.0,1e-08]
[1752937215363,0.44760247,117670.0,117660.0,1e-08]
[1752937215784,0.1895368,117670.0,117660.0,1e-08]
[1752937215995,0.41324247,117670.0,117660.0,0.00208001]
[1752937216221,0.41324247,117670.0,117660.0,0.00509001]
[1752937216652,0.41324247,117670.0,117660.0,0.00208001]
[1752937217273,0.1709768,117670.0,117660.0,1e-08]
[1752937217724,0.41324247,117670.0,117660.0,1e-08]
[1752937218459,0.1709768,117670.0,117660.0,1e-08]
[1752937218688,0.41324247,117670.0,117660.0,1e-08]
[1752937219342,0.1709768,117670.0,117660.0,1e-08]
[1752937219557,0.41324247,117670.0,117660.0,1e-08]
[1752937220223,0.1709768,117670.0,117660.0,1e-08]
[1752937220443,0.41324247,117670.0,117660.0,1e-08]
[1752937223259,0.1709768,117670.0,117660.0,1e-08]
[1752937223473,0.1709768,117670.0,117660.0,0.00208001]
[1752937223474,0.41324247,117670.0,117660.0,0.00208001]
[1752937224703,0.41324247,117670.0,117660.0,1e-08]
[1752937225657,0.41624247,117670.0,117660.0,1e-08]
[1752937226280,0.41324247,117670.0,117660.0,1e-08]
[1752937227098,0.1739768,117670.0,117660.0,1e-08]
[1752937227311,0.1709768,117670.0,117660.0,0.03518001]
[1752937227546,0.1709768,117670.0,117660.0,0.03818001]
[1752937227749,0.1690268,117670.0,117660.0,0.03818001]
[1752937227973,0.41129247,117670.0,117660.0,0.03818001]
[1752937228148,0.1690268,117670.0,117660.0,0.03818001]
[1752937228352,0.41129247,117670.0,117660.0,0.03818001]
[1752937229436,0.1690268,117670.0,117660.0,0.03818001]
[1752937229844,0.41129247,117670.0,117660.0,0.03818001]
[1752937231283,0.1690268,117670.0,117660.0,0.03818001]
[1752937232118,0.41129247,117670.0,117660.0,0.03818001]
[1752937232963,0.1690268,117670.0,117660.0,0.03818001]
[1752937233181,0.19646078,117670.0,117660.0,0.12369029]
[1752937233853,0.18796302,117670.0,117660.0,0.12369029]
[1752937234699,0.17946504,117670.0,117660.0,0.12369029]
[1752937238385,0.17946504,117670.0,117660.0,0.36595596]
[1752937238955,0.01799574,117670.0,117660.0,0.36595596]
[1752937239131,0.02649386,117670.0,117660.0,0.36595596]
[1752937239555,0.02491497,117670.0,117660.0,0.36595596]
[1752937239763,0.16993797,117690.0,117670.0,0.20136612]
[1752937239965,0.24681363,117700.0,117680.0,0.02048]
[1752937240175,0.19542836,117690.0,117680.0,0.02048]
[1752937240380,0.20392482,117690.0,117680.0,0.03348]
[1752937241065,0.19542836,117690.0,117680.0,0.03648]
[1752937241256,0.18693168,117690.0,117680.0,0.03648]
[1752937241523,0.18793168,117690.0,117680.0,0.03648]
[1752937243843,0.01799335,117690.0,117680.0,0.03648]
[1752937244260,0.02648974,117690.0,117680.0,0.03648]
[1752937244481,0.001,117690.0,117680.0,0.44869808]
[1752937244694,0.00949639,117690.0,117680.0,0.53420836]
[1752937245101,0.01799292,117690.0,117680.0,0.53420836]
[1752937245339,0.0264896,117690.0,117680.0,0.53420836]
[1752937245588,0.00949639,117690.0,117680.0,0.53420836]
[1752937245800,0.18370125,117700.0,117680.0,0.50380836]
[1752937246026,0.18370125,117700.0,117690.0,0.0312]
[1752937246267,0.18370125,117700.0,117690.0,0.03628]
[1752937246493,0.17520515,117700.0,117690.0,0.03628]
[1752937248348,0.17520515,117700.0,117690.0,0.03728]
[1752937250985,0.18370111,117700.0,117690.0,0.12279028]
[1752937251194,0.00899465,117700.0,117690.0,0.53499392]
[1752937251462,0.00049913,117700.0,117690.0,0.56048402]
[1752937251670,0.00049913,117700.0,117690.0,0.56148402]
[1752937251851,0.00049913,117700.0,117690.0,0.90998041]
[1752937252096,0.00049913,117700.0,117690.0,0.92352126]
[1752937252305,0.00049913,117700.0,117690.0,2.18706626]
[1752937252509,0.00049913,117700.0,117690.0,2.13985126]
[1752937252719,0.00049913,117700.0,117690.0,2.05129326]
[1752937253124,0.00049913,117700.0,117690.0,1.71593626]
[1752937253375,0.00049913,117700.0,117690.0,1.69993626]
[1752937253564,0.00049913,117700.0,117690.0,1.70093626]
[1752937253773,0.00049913,117700.0,117690.0,1.70293626]
[1752937254128,0.00049913,117700.0,117690.0,1.61268226]
[1752937255367,0.00049913,117700.0,117690.0,1.37041659]
[1752937255577,0.00049913,117700.0,117690.0,1.61068226]
[1752937255976,0.00049913,117700.0,117690.0,1.61368226]
[1752937256231,0.00049913,117700.0,117690.0,1.61168226]
[1752937256448,0.00049913,117700.0,117690.0,1.24003826]
[1752937256944,0.00049913,117700.0,117690.0,0.9637861]
[1752937257161,0.0089948,117700.0,117690.0,0.6492691]
[1752937257373,0.0089948,117700.0,117690.0,0.46479028]
[1752937257374,0.02598671,117700.0,117690.0,0.46479028]
[1752937257575,0.19591024,117700.0,117690.0,0.46879028]
[1752937257782,0.20440634,117700.0,117690.0,0.46879028]
[1752937257996,0.03448281,117700.0,117690.0,0.46879028]
[1752937258386,0.03448281,117700.0,117690.0,0.46479028]
[1752937258643,0.20440634,117700.0,117690.0,0.46479028]
[1752937258851,0.20440634,117700.0,117690.0,0.12979028]
[1752937259055,0.19591067,117700.0,117690.0,0.12479028]
[1752937259260,0.02598714,117700.0,117690.0,0.12879028]
[1752937259468,0.19591067,117700.0,117690.0,0.12879028]
[1752937259680,0.20440684,117700.0,117690.0,0.12579028]
[1752937260113,0.19591096,117700.0,117690.0,0.12779028]
[1752937260323,0.18947493,117700.0,117690.0,0.09659028]
[1752937260526,0.18947493,117700.0,117690.0,0.09359028]
[1752937260775,0.4477406,117700.0,117690.0,0.09151028]
[1752937260980,0.4507906,117700.0,117690.0,0.09151028]
[1752937261186,0.20852493,117700.0,117690.0,0.09151028]
[1752937261398,0.19252493,117700.0,117690.0,0.08951028]
[1752937261623,0.19252493,117700.0,117690.0,0.08551028]
[1752937261836,0.18947493,117700.0,117690.0,0.08551028]
[1752937262065,0.18947493,117700.0,117690.0,0.08956028]
[1752937262507,0.18097883,117700.0,117690.0,0.08956028]
[1752937262717,0.18097883,117700.0,117690.0,0.09056028]
[1752937263837,0.18097883,117700.0,117690.0,0.09381028]
[1752937267793,0.00255913,117700.0,117690.0,0.09381028]
[1752937268047,0.00049913,117700.0,117690.0,0.56340366]
[1752937268263,0.00049913,117700.0,117690.0,0.90340366]
[1752937268475,0.00049913,117700.0,117690.0,1.56867151]
[1752937270806,0.00049913,117700.0,117690.0,1.32640584]
[1752937271247,0.00049913,117700.0,117690.0,1.56867151]
[1752937275361,0.00049913,117700.0,117690.0,1.32640584]
[1752937275569,0.00049913,117700.0,117690.0,1.56867151]
[1752937276263,0.0003292,117700.0,117690.0,1.56867151]
[1752937277787,0.0003292,117700.0,117690.0,1.71867151]
[1752937278411,0.0003292,117700.0,117690.0,1.71667151]
[1752937278629,0.0003292,117700.0,117690.0,1.71567151]
[1752937278843,0.0003292,117700.0,117690.0,1.72367151]
[1752937279655,0.0003292,117700.0,117690.0,1.48140584]
[1752937279877,0.0003292,117700.0,117690.0,1.72367151]
[1752937280831,0.0003292,117700.0,117690.0,6.07294451]
[1752937281042,0.0003292,117700.0,117690.0,4.83150451]
[1752937281834,0.0003292,117700.0,117690.0,1.07294451]
[1752937282047,0.0003292,117700.0,117690.0,5.59567751]
[1752937282870,0.0003292,117700.0,117690.0,1.07294451]
[1752937283088,0.0003292,117700.0,117690.0,6.09900015]
[1752937283310,0.0003292,117700.0,117690.0,6.14895376]
[1752937283516,0.0003292,117700.0,117690.0,6.44895376]
[1752937284241,0.0003292,117700.0,117690.0,6.42289812]
[1752937286486,0.0003292,117700.0,117690.0,6.44837912]
[1752937288985,0.0003292,117700.0,117690.0,1.44837912]
[1752937289193,0.0003292,117700.0,117690.0,6.44837912]
[1752937290275,0.0003292,117700.0,117690.0,6.24571112]
[1752937290483,0.0003292,117700.0,117690.0,3.22110312]
[1752937291132,0.0003292,117700.0,117690.0,3.74050212]
[1752937291369,0.0003292,117700.0,117690.0,3.57011251]
[1752937291593,0.0003292,117700.0,117690.0,3.49298312]
[1752937291798,0.0003292,117700.0,117690.0,3.44302951]
[1752937292006,0.0003292,117700.0,117690.0,3.38241851]
[1752937292230,0.0003292,117700.0,117690.0,3.38216351]
[1752937292685,0.0003292,117700.0,117690.0,1.07587684]
[1752937292924,0.0003292,117700.0,117690.0,1.16814251]
[1752937293141,0.0003292,117700.0,117690.0,1.14266151]
[1752937293347,0.0023892,117700.0,117690.0,1.00070651]
[1752937294231,0.0003292,117700.0,117690.0,1.00070651]
[1752937295836,0.0003292,117700.0,117690.0,0.75844084]
[1752937296051,0.0003292,117700.0,117690.0,1.00070651]
[1752937296475,0.0003292,117700.0,117690.0,0.75844084]
[1752937296675,0.0003292,117700.0,117690.0,1.00070651]
[1752937298096,0.0003292,117700.0,117690.0,1.03330651]
[1752937298988,0.0003292,117700.0,117690.0,0.79104084]
[1752937299191,0.0003292,117700.0,117690.0,1.03330651]
[1752937305566,0.2254127,117720.0,117700.0,0.5499421]
[1752937305800,0.2254127,117720.0,117710.0,0.00212386]
[1752937306023,0.2224727,117720.0,117710.0,0.08763414]
[1752937307627,0.2224727,117720.0,117710.0,0.08963414]
[1752937308069,0.02754289,117720.0,117710.0,0.52076068]
[1752937308270,0.03603755,117720.0,117710.0,0.34334235]
[1752937308748,0.02754289,117720.0,117710.0,0.34023235]
[1752937308953,0.03603747,117720.0,117710.0,0.34023235]
[1752937309166,0.03603747,117720.0,117710.0,0.3487278]
[1752937309384,0.0169883,117720.0,117710.0,0.5452422]
[1752937309966,0.00849408,117720.0,117710.0,0.5302422]
[1752937310191,0.0254826,117720.0,117710.0,0.5217658]
[1752937310355,0.0254826,117720.0,117710.0,0.51327049]
[1752937310559,0.03593718,117720.0,117710.0,0.33486595]
[1752937310783,0.03593718,117720.0,117710.0,0.09260028]
[1752937310981,0.00849408,117720.0,117710.0,0.53888944]
[1752937311175,0.00849408,117720.0,117710.0,0.55375554]
[1752937311411,0.04456152,117730.0,117710.0,0.55375554]
[1752937311652,0.04456144,117730.0,117710.0,0.55375554]
[1752937311863,0.04138087,117730.0,117720.0,0.16989466]
[1752937312070,0.01894708,117730.0,117720.0,0.26389967]
[1752937312279,0.01894708,117730.0,117720.0,0.27452433]
[1752937312478,0.01894708,117730.0,117720.0,0.28301891]
[1752937312684,0.03593473,117730.0,117720.0,0.09078028]
[1752937312888,0.05183473,117730.0,117720.0,0.09290396]
[1752937313093,0.05183473,117730.0,117720.0,0.08976396]
[1752937313241,0.05183473,117730.0,117720.0,0.08763396]
[1752937314026,0.06032874,117730.0,117720.0,0.08763396]
[1752937314274,0.06032874,117730.0,117720.0,0.08863396]
[1752937314275,0.05183473,117730.0,117720.0,0.08863396]
[1752937314486,0.0433408,117730.0,117720.0,0.26702328]
[1752937314693,0.0274408,117730.0,117720.0,0.2648996]
[1752937314900,0.0274408,117730.0,117720.0,0.2670296]
[1752937315098,0.0274408,117730.0,117720.0,0.27552418]
[1752937315338,0.0104535,117730.0,117720.0,0.28715855]
[1752937315556,0.0104535,117730.0,117720.0,0.64265862]
[1752937316003,0.22942585,117740.0,117720.0,0.65964729]
[1752937316218,0.22093285,117740.0,117730.0,0.08551028]
[1752937316422,0.05302621,117740.0,117730.0,0.08551028]
[1752937317034,0.05302578,117740.0,117730.0,0.08551028]
[1752937317242,0.07001206,117740.0,117730.0,0.08551028]
[1752937317454,0.07001206,117740.0,117730.0,0.08559503]
[1752937318338,0.04243885,117740.0,117730.0,0.08559503]
[1752937318543,0.04243885,117740.0,117730.0,0.26396927]
[1752937318727,0.04243885,117740.0,117730.0,0.25547526]
[1752937318929,0.01045278,117740.0,117730.0,0.26396927]
[1752937319110,0.01894578,117740.0,117730.0,0.43086503]
[1752937319314,0.01045278,117740.0,117730.0,0.60609919]
[1752937319814,0.00196,117740.0,117730.0,0.61559305]
[1752937320044,0.01045271,117740.0,117730.0,0.61559305]
[1752937320276,0.01045278,117740.0,117730.0,0.61559305]
[1752937320454,0.00196,117740.0,117730.0,0.84936486]
[1752937320696,0.04896882,117750.0,117730.0,1.01254086]
[1752937320900,0.04047633,117750.0,117730.0,0.6427267]
[1752937321101,0.04896875,117750.0,117730.0,0.6437267]
[1752937321313,0.01045264,117740.0,117730.0,0.60174526]
[1752937321511,0.01045264,117740.0,117730.0,0.60809927]
[1752937321632,0.01894535,117740.0,117730.0,0.6165932]
[1752937321839,0.01894535,117740.0,117730.0,0.6155932]
[1752937322049,0.01894535,117740.0,117730.0,0.6145932]
[1752937322261,0.00196,117740.0,117730.0,0.62508699]
[1752937322462,0.00196,117740.0,117730.0,0.63572071]
[1752937322851,0.00196,117740.0,117730.0,0.63472071]
[1752937323062,0.00196,117740.0,117730.0,0.62722699]
[1752937323270,0.00196,117740.0,117730.0,0.63572071]
[1752937323475,0.00196,117740.0,117730.0,0.62722699]
[1752937323900,0.00196,117740.0,117730.0,0.62822706]
[1752937324115,0.01045278,117740.0,117730.0,0.60274526]
[1752937324330,0.0189457,117740.0,117730.0,0.59960526]
[1752937324550,0.01045278,117740.0,117730.0,0.59960526]
[1752937324763,0.0189457,117740.0,117730.0,0.59960526]
[1752937325412,0.01894563,117740.0,117730.0,0.59960526]
[1752937326296,0.01045271,117740.0,117730.0,0.6165932]
[1752937326507,0.01045271,117740.0,117730.0,0.61123927]
[1752937326714,0.01894563,117740.0,117730.0,0.59960526]
[1752937327154,0.01045271,117740.0,117730.0,0.59960526]
[1752937327380,0.01894556,117740.0,117730.0,0.60809927]
[1752937327601,0.02743848,117740.0,117730.0,0.59960526]
[1752937328102,0.01894556,117740.0,117730.0,0.59960526]
[1752937328309,0.02565271,117740.0,117730.0,0.6165932]
[1752937328513,0.01045271,117740.0,117730.0,0.6165932]
[1752937328719,0.01045271,117740.0,117730.0,0.6197332]
[1752937329142,0.00196,117740.0,117730.0,0.61123927]
[1752937329351,0.01894549,117740.0,117730.0,0.61123927]
[1752937329565,0.01894542,117740.0,117730.0,0.6197332]
[1752937329756,0.01045264,117740.0,117730.0,0.6197332]
[1752937329964,0.01045264,117740.0,117730.0,0.61123927]
[1752937330173,0.01894542,117740.0,117730.0,0.61123927]
[1752937330390,0.03593134,117740.0,117730.0,0.60274526]
[1752937331370,0.03593134,117740.0,117730.0,0.42972503]
[1752937331588,0.03593134,117740.0,117730.0,0.59960526]
[1752937331796,0.03593134,117740.0,117730.0,0.42972503]
[1752937332006,0.03593134,117740.0,117730.0,0.59960526]
[1752937332007,0.05113134,117740.0,117730.0,0.59960526]
[1752937332216,0.02743834,117740.0,117730.0,0.59960526]
[1752937332435,0.03593148,117740.0,117730.0,0.59960526]
[1752937332662,0.03593141,117740.0,117730.0,0.42972503]
[1752937332874,0.02743834,117740.0,117730.0,0.59960526]
[1752937333083,0.02743834,117740.0,117730.0,0.60274526]
[1752937333545,0.02743834,117740.0,117730.0,0.61123927]
[1752937333761,0.01894542,117740.0,117730.0,0.61123927]
[1752937333978,0.02743834,117740.0,117730.0,0.61123927]
[1752937334204,0.02743834,117740.0,117730.0,0.60274526]
[1752937334458,0.02743834,117740.0,117730.0,0.61123927]
[1752937334690,0.01894542,117740.0,117730.0,0.61123919]
[1752937334936,0.02743827,117740.0,117730.0,0.61123927]
[1752937335165,0.02743827,117740.0,117730.0,0.62733927]
[1752937335624,0.02743827,117740.0,117730.0,0.6358332]
[1752937335863,0.02743827,117740.0,117730.0,0.62733927]
[1752937336100,0.02743827,117740.0,117730.0,0.62733919]
[1752937336609,0.01045264,117740.0,117730.0,0.64432677]
[1752937336860,0.00849264,117740.0,117730.0,0.64432684]
[1752937337521,0.00849264,117740.0,117730.0,0.65282056]
[1752937337729,0.00849264,117740.0,117730.0,0.66032684]
[1752937337939,0.01698542,117740.0,117730.0,0.65183305]
[1752937338154,0.00849264,117740.0,117730.0,0.66032677]
[1752937338370,0.00849264,117740.0,117730.0,0.89409872]
[1752937338589,0.01698535,117740.0,117730.0,0.89409872]
[1752937338798,0.21052859,117750.0,117730.0,0.89409872]
[1752937338980,0.00849264,117740.0,117730.0,0.90259251]
[1752937339186,0.03218462,117750.0,117730.0,0.91108616]
[1752937339345,0.04067718,117750.0,117730.0,0.90259251]
[1752937339558,0.04067718,117750.0,117730.0,0.91108623]
[1752937339759,0.00849264,117740.0,117730.0,0.91008623]
[1752937339961,0.19532924,117750.0,117730.0,0.91008623]
[1752937340190,0.19532924,117750.0,117730.0,0.91108623]
[1752937340366,0.19532924,117750.0,117730.0,0.91008623]
[1752937340680,0.01698419,117750.0,117740.0,0.1698658]
[1752937340895,0.01901419,117750.0,117740.0,0.25751608]
[1752937341123,0.01901419,117750.0,117740.0,0.26600937]
[1752937341350,0.01901419,117750.0,117740.0,0.25751608]
[1752937341560,0.02750654,117750.0,117740.0,0.25751608]
[1752937341786,0.03599896,117750.0,117740.0,0.08765028]
[1752937342419,0.02750654,117750.0,117740.0,0.08765028]
[1752937342637,0.02750654,117750.0,117740.0,0.25751608]
[1752937342838,0.02750647,117750.0,117740.0,0.26074608]
[1752937343043,0.01901419,117750.0,117740.0,0.26174608]
[1752937343987,0.01901412,117750.0,117740.0,0.27874554]
[1752937344187,0.01052199,117750.0,117740.0,0.27874554]
[1752937344396,0.01052199,117750.0,117740.0,0.28723875]
[1752937344627,0.01052199,117750.0,117740.0,0.27774554]
[1752937344837,0.02750625,117750.0,117740.0,0.26174608]
[1752937345150,0.02750625,117750.0,117740.0,0.26274608]
[1752937345571,0.02750618,117750.0,117740.0,0.26274608]
[1752937345772,0.03599846,117750.0,117740.0,0.26274608]
[1752937345986,0.04449088,117750.0,117740.0,0.09288028]
[1752937346287,0.04449188,117750.0,117740.0,0.09288028]
[1752937346505,0.21434326,117750.0,117740.0,0.08751028]
[1752937346646,0.4661568,117750.0,117740.0,0.08751028]
[1752937346844,0.4823568,117750.0,117740.0,0.08751028]
[1752937348210,0.24009113,117750.0,117740.0,0.08751028]
[1752937349257,0.06174719,117750.0,117740.0,0.08751028]
[1752937349468,0.23159857,117750.0,117740.0,0.08751028]
[1752937349692,0.21539857,117750.0,117740.0,0.08751028]
[1752937350938,0.04554719,117750.0,117740.0,0.08751028]
[1752937352420,0.21539857,117750.0,117740.0,0.08751028]
[1752937353480,0.21842757,117750.0,117740.0,0.08751028]
[1752937354975,0.46069324,117750.0,117740.0,0.08751028]
[1752937356793,0.21842757,117750.0,117740.0,0.08751028]
[1752937357008,0.22692013,117750.0,117740.0,0.08751028]
[1752937358496,0.02204334,117750.0,117740.0,0.27814608]
[1752937358940,0.2121851,117750.0,117740.0,0.27814608]
[1752937359163,0.20369275,117750.0,117740.0,0.27814608]
[1752937359772,0.02204334,117750.0,117740.0,0.27814608]
[1752937360177,0.02204326,117750.0,117740.0,0.27814608]
[1752937360410,0.02204326,117750.0,117740.0,0.28663937]
[1752937360796,0.02204326,117750.0,117740.0,0.27814608]
[1752937360973,0.20369267,117750.0,117740.0,0.27814608]
[1752937361533,0.20369267,117750.0,117740.0,0.28663937]
[1752937362085,0.20369275,117750.0,117740.0,0.27814608]
[1752937362768,0.19520047,117750.0,117740.0,0.27814608]
[1752937362971,0.20369267,117750.0,117740.0,0.28663937]
[1752937363692,0.20369267,117750.0,117740.0,0.27814608]
[1752937363935,0.20369267,117750.0,117740.0,0.28663937]
[1752937364169,0.21218502,117750.0,117740.0,0.10828028]
[1752937364586,0.22067751,117750.0,117740.0,0.10828028]
[1752937364823,0.22067744,117750.0,117740.0,0.10828028]
[1752937364999,0.39052925,117750.0,117740.0,0.10828028]
[1752937368055,0.20887984,117750.0,117740.0,0.10828028]
[1752937368226,0.39902181,117750.0,117740.0,0.10828028]
[1752937368896,0.39052961,117750.0,117740.0,0.10828028]
[1752937369494,0.19532885,117750.0,117740.0,0.10828028]
[1752937369842,0.38707061,117750.0,117740.0,0.10828028]
[1752937370074,0.37857826,117750.0,117740.0,0.10828028]
[1752937370207,0.17994394,117750.0,117740.0,0.08751028]
[1752937370448,0.36159335,117750.0,117740.0,0.08751028]
[1752937370652,0.37749335,117750.0,117740.0,0.08751028]
[1752937371710,0.3700857,117750.0,117740.0,0.09274028]
[1752937372115,0.36159335,117750.0,117740.0,0.09274028]
[1752937372367,0.17994394,117750.0,117740.0,0.09274028]
[1752937372540,0.36159335,117750.0,117740.0,0.09274028]
[1752937372913,0.36159335,117750.0,117740.0,0.08751028]
[1752937373123,0.21440394,117750.0,117740.0,0.08751028]
[1752937373327,0.57770276,117750.0,117740.0,0.08751028]
[1752937373503,0.57770276,117750.0,117740.0,0.002]
[1752937374769,0.57770276,117750.0,117740.0,0.001]
[1752937374990,0.45670928,117750.0,117740.0,0.001]
[1752937375194,0.21015894,117740.0,117730.0,8.475e-05]
[1752937375406,0.45709428,117740.0,117730.0,0.08559503]
[1752937375792,0.45444428,117740.0,117730.0,0.08559503]
[1752937376044,0.43854428,117740.0,117730.0,0.08559503]
[1752937376449,0.43854428,117740.0,117730.0,0.08659503]
[1752937377803,0.43854428,117740.0,117730.0,0.08759503]
[1752937378400,0.19623894,117740.0,117730.0,0.08759503]
[1752937378609,0.43854428,117740.0,117730.0,0.08759503]
[1752937379049,0.44703735,117740.0,117730.0,0.08759503]
[1752937379595,0.43854428,117740.0,117730.0,0.08759503]
[1752937381705,0.19623894,117740.0,117730.0,0.08759503]
[1752937381923,0.01896563,117740.0,117730.0,0.25747526]
[1752937382125,0.01698563,117740.0,117730.0,0.27770526]
[1752937382327,0.1783451,117750.0,117730.0,0.54380461]
[1752937382562,0.02439163,117760.0,117740.0,0.53955463]
[1752937382771,0.02439076,117770.0,117750.0,0.44937163]
[1752937382989,0.01698131,117770.0,117760.0,0.10359028]
[1752937383204,0.01698131,117770.0,117760.0,0.10574028]
[1752937383408,0.01698131,117770.0,117760.0,0.27557723]
[1752937383614,0.02547229,117770.0,117760.0,0.10574028]
[1752937384050,0.03396341,117770.0,117760.0,0.10574028]
[1752937384265,0.02547229,117770.0,117760.0,0.10574028]
[1752937384463,0.03396341,117770.0,117760.0,0.10574028]
[1752937384907,0.20378594,117770.0,117760.0,0.10574028]
[1752937385549,0.02547229,117770.0,117760.0,0.10574028]
[1752937386006,0.19529482,117770.0,117760.0,0.10574028]
[1752937386223,0.19529482,117770.0,117760.0,0.10674028]
[1752937387268,0.02547229,117770.0,117760.0,0.10674028]
[1752937387694,0.02547222,117770.0,117760.0,0.10674028]
[1752937387907,0.01698131,117770.0,117760.0,0.27657723]
[1752937388204,0.02547222,117770.0,117760.0,0.27657723]
[1752937388643,0.01698131,117770.0,117760.0,0.27657723]
[1752937388851,0.00849055,117770.0,117760.0,0.301269]
[1752937389061,0.42909475,117780.0,117770.0,0.0164]
[1752937389293,0.19527931,117780.0,117770.0,0.10406028]
[1752937389512,0.18876941,117780.0,117770.0,0.09074028]
[1752937389947,0.43107475,117780.0,117770.0,0.08551028]
[1752937390713,0.43207475,117780.0,117770.0,0.08551028]
[1752937390936,0.43107475,117780.0,117770.0,0.08551028]
[1752937391415,0.18876941,117780.0,117770.0,0.08551028]
[1752937391644,0.18876941,117780.0,117770.0,0.09074028]
[1752937391864,0.18876941,117780.0,117770.0,0.10634028]
[1752937392312,0.1802793,117780.0,117770.0,0.10634028]
[1752937392769,0.1782993,117780.0,117770.0,0.10734028]
[1752937393212,0.01698044,117780.0,117770.0,0.12314028]
[1752937393745,0.18678855,117780.0,117770.0,0.10734028]
[1752937394218,0.18876855,117780.0,117770.0,0.10734028]
[1752937394474,0.43868378,117780.0,117770.0,0.08651028]
[1752937394985,0.42258378,117780.0,117770.0,0.08651028]
[1752937396381,0.41409345,117780.0,117770.0,0.08651028]
[1752937398068,0.17178811,117780.0,117770.0,0.08959028]
[1752937398758,0.17178811,117780.0,117770.0,0.10469028]
[1752937399838,0.41409345,117780.0,117770.0,0.10469028]
[1752937400174,0.17178811,117780.0,117770.0,0.10469028]
[1752937400386,0.41409345,117780.0,117770.0,0.10469028]
[1752937400592,0.17178811,117780.0,117770.0,0.10684028]
[1752937400806,0.41409345,117780.0,117770.0,0.10684028]
[1752937401019,0.41409345,117780.0,117770.0,0.08959028]
[1752937401228,0.41409345,117780.0,117770.0,0.08651028]
[1752937402209,0.43049345,117780.0,117770.0,0.08651028]
[1752937402442,0.44834345,117780.0,117770.0,0.08651028]
[1752937402907,0.20603811,117780.0,117770.0,0.08651028]
[1752937403118,0.44834345,117780.0,117770.0,0.08651028]
[1752937403324,0.43314345,117780.0,117770.0,0.08651028]
[1752937403558,0.43049345,117780.0,117770.0,0.08651028]
[1752937404257,0.18818811,117780.0,117770.0,0.08651028]
[1752937404478,0.17178811,117780.0,117770.0,0.08651028]
[1752937404697,0.41409345,117780.0,117770.0,0.08651028]
[1752937408710,0.41409345,117780.0,117770.0,0.08962028]
[1752937408918,0.41409345,117780.0,117770.0,0.09177028]
[1752937412467,0.41409345,117780.0,117770.0,0.08651028]
[1752937414503,0.17178811,117780.0,117770.0,0.10837028]
[1752937414709,0.41409345,117780.0,117770.0,0.10837028]
[1752937418844,0.17178811,117780.0,117770.0,0.10837028]
[1752937419048,0.41409345,117780.0,117770.0,0.10837028]
[1752937419267,0.17829851,117780.0,117770.0,0.10837028]
[1752937419521,0.17829851,117780.0,117770.0,0.12407028]
[1752937420294,0.17352862,117780.0,117770.0,0.12407028]
[1752937421234,0.1820188,117780.0,117770.0,0.12407028]
[1752937421439,0.19050877,117780.0,117770.0,0.12407028]
[1752937421953,0.37206496,117780.0,117770.0,0.12407028]
[1752937422997,0.19050877,117780.0,117770.0,0.12407028]
[1752937424850,0.1820188,117780.0,117770.0,0.12407028]
[1752937425286,0.17352862,117780.0,117770.0,0.12407028]
[1752937433767,0.18201873,117780.0,117770.0,0.12407028]
[1752937434507,0.01698001,117780.0,117770.0,0.12407028]
[1752937434848,0.02547019,117780.0,117770.0,0.12407028]
[1752937435299,0.0084899,117780.0,117770.0,0.29389281]